fUSD/lending_fUSD_20241128
["ID","MTS","AMOUNT","RATE_DAILY","PERIOD"]
[343656374,1732799434184,-500.0,9.898e-05,2]
[343656375,1732799434196,-500.0,9.898e-05,2]
[343656376,1732799434205,-500.0,9.898e-05,2]
[343656377,1732799434214,-500.0,9.898e-05,2]
[343656378,1732799434224,-500.0,9.898e-05,2]
[343656379,1732799434234,-320.75420051,9.898e-05,2]
[343656380,1732799434431,-500.0,9.898e-05,2]
[343656381,1732799434446,-500.0,9.898e-05,2]
[343656382,1732799434456,-500.0,9.898e-05,2]
[343656383,1732799434466,-500.0,9.898e-05,2]
[343656384,1732799434475,-500.0,9.898e-05,2]
[343656385,1732799434486,-500.0,9.898e-05,2]
[343656386,1732799434501,-500.0,9.898e-05,2]
[343656387,1732799434511,-500.0,9.898e-05,2]
[343656388,1732799434520,-500.0,9.898e-05,2]
[343656389,1732799434530,-502.12943124,9.898e-05,2]
[343656390,1732799434539,-500.0,9.898e-05,2]
[343656391,1732799434549,-500.0,9.898e-05,2]
[343656392,1732799434558,-500.0,9.898e-05,2]
[343656393,1732799434568,-500.0,9.898e-05,2]
[343656394,1732799434577,-500.0,9.898e-05,2]
[343656395,1732799434587,-500.0,9.898e-05,2]
[343656396,1732799434596,-500.0,9.898e-05,2]
[343656397,1732799434606,-500.0,9.898e-05,2]
[343656398,1732799434615,-299.63630554,9.898e-05,2]
[343656399,1732799434624,-94035.31083907,9.899e-05,2]
[343656400,1732799434641,-1752.00056093,9.899e-05,2]
[343656401,1732799434651,-1000.0,9.9e-05,2]
[343656402,1732799434660,-1000.0,9.9e-05,2]
[343656403,1732799434669,-1000.0,9.9e-05,2]
[343656404,1732799434678,-1000.0,9.9e-05,2]
[343656405,1732799434688,-1000.0,9.9e-05,2]
[343656406,1732799434697,-1000.0,9.9e-05,2]
[343656407,1732799434706,-454.0,9.9e-05,3]
[343656408,1732799434716,-1000.0,9.9e-05,3]
[343656409,1732799434726,-1000.0,9.9e-05,3]
[343656410,1732799434735,-1000.0,9.9e-05,2]
[343656411,1732799434744,-1000.0,9.9e-05,2]
[343656412,1732799434754,-1000.0,9.9e-05,2]
[343656413,1732799434763,-1000.0,9.9e-05,2]
[343656414,1732799434772,-3575.92080586,9.9e-05,2]
[343656415,1732799434782,-158.64,9.909e-05,2]
[343656416,1732799434791,-279.17941589,9.973e-05,2]
[343656417,1732799434801,-173.87889891,9.973e-05,2]
[343656418,1732799434810,-162.34963396,9.973e-05,2]
[343656419,1732799434820,-500.0,9.973e-05,2]
[343656420,1732799434831,-302.48579563,9.973e-05,2]
[343656421,1732799434842,-1201.856,9.99e-05,2]
[343656422,1732799434851,-242.958,9.99e-05,2]
[343656423,1732799434861,-2049.99582416,9.99e-05,2]
[343656424,1732799434871,-2049.99582416,9.99e-05,2]
[343656425,1732799434880,-2049.99582416,9.99e-05,2]
[343656426,1732799434890,-2049.99582416,9.99e-05,2]
[343656427,1732799434899,-2049.99582416,9.99e-05,2]
[343656428,1732799434908,-2049.99582416,9.99e-05,2]
[343656429,1732799434917,-2049.99582416,9.99e-05,2]
[343656430,1732799434926,-2049.99582416,9.99e-05,2]
[343656431,1732799434944,-2049.99582416,9.99e-05,2]
[343656432,1732799434955,-437.505373,9.998e-05,2]
[343656434,1732799434964,-500.0,9.998e-05,2]
[343656435,1732799434973,-500.0,9.998e-05,2]
[343656436,1732799434982,-434.38,9.998e-05,2]
[343656437,1732799434991,-641.07,9.998e-05,2]
[343656438,1732799435000,-630.94136207,9.998e-05,2]
[343656439,1732799435009,-500.0,9.998e-05,2]
[343656440,1732799435020,-500.0,9.998e-05,2]
[343656441,1732799435029,-500.0,9.998e-05,2]
[343656442,1732799435038,-500.0,9.998e-05,2]
[343656443,1732799435047,-500.0,9.998e-05,2]
[343656444,1732799435057,-500.0,9.998e-05,2]
[343656445,1732799435066,-500.0,9.998e-05,2]
[343656446,1732799435075,-160152.07183631,9.999e-05,2]
[343656447,1732799435084,-1555.21000385,9.999e-05,2]
[343656448,1732799435093,-8500.0,9.999e-05,2]
[343656449,1732799435102,-579.15699496,9.999e-05,2]
[343656450,1732799435111,-500.0,9.999e-05,2]
[343656451,1732799435120,-500.0,9.999e-05,2]
[343656452,1732799435129,-500.0,9.999e-05,2]
[343656453,1732799435138,-500.0,9.999e-05,2]
[343656454,1732799435147,-500.0,9.999e-05,2]
[343656455,1732799435157,-500.0,9.999e-05,2]
[343656456,1732799435166,-500.0,9.999e-05,2]
[343656457,1732799435175,-500.0,9.999e-05,2]
[343656458,1732799435187,-500.0,9.999e-05,2]
[343656459,1732799435197,-500.0,9.999e-05,2]
[343656460,1732799435206,-500.0,9.999e-05,2]
[343656461,1732799435215,-500.0,9.999e-05,2]
[343656462,1732799435224,-500.0,9.999e-05,2]
[343656463,1732799435234,-500.0,9.999e-05,2]
[343656464,1732799435243,-500.0,9.999e-05,2]
[343656465,1732799435252,-500.0,9.999e-05,2]
[343656466,1732799435261,-500.0,9.999e-05,2]
[343656467,1732799435271,-500.0,9.999e-05,2]
[343656468,1732799435280,-431.23,9.999e-05,2]
[343656469,1732799435289,-500.0,9.999e-05,2]
[343656470,1732799435298,-500.0,9.999e-05,2]
[343656471,1732799435307,-500.0,9.999e-05,2]
[343656472,1732799435317,-500.0,9.999e-05,2]
[343656473,1732799435327,-500.0,9.999e-05,2]
[343656474,1732799435338,-500.0,9.999e-05,2]
[343656475,1732799435348,-500.0,9.999e-05,2]
[343656476,1732799435357,-572.44358407,9.999e-05,2]
[343656477,1732799435366,-500.0,9.999e-05,2]
[343656478,1732799435375,-405.9769414,9.999e-05,2]
[343656479,1732799435384,-500.0,9.999e-05,2]
[343656480,1732799435393,-547.99,9.999e-05,2]
[343656481,1732799435402,-500.0,9.999e-05,2]
[343656482,1732799435411,-500.0,9.999e-05,2]
[343656483,1732799435420,-500.0,9.999e-05,2]
[343656484,1732799435428,-500.0,9.999e-05,2]
[343656485,1732799435444,-391.56,9.999e-05,2]
[343656486,1732799435453,-500.0,9.999e-05,2]
[343656487,1732799435467,-500.0,9.999e-05,2]
[343656488,1732799435476,-500.0,9.999e-05,2]
[343656489,1732799435486,-500.0,9.999e-05,2]
[343656490,1732799435496,-501.75,9.999e-05,2]
[343656491,1732799435504,-168.02,9.999e-05,2]
[343656492,1732799435514,-500.0,9.999e-05,2]
[343656493,1732799435523,-500.0,9.999e-05,2]
[343656494,1732799435532,-500.0,9.999e-05,2]
[343656495,1732799435541,-500.0,9.999e-05,2]
[343656496,1732799435551,-500.0,9.999e-05,2]
[343656497,1732799435560,-500.0,9.999e-05,2]
[343656498,1732799435569,-500.0,9.999e-05,2]
[343656499,1732799435579,-500.0,9.999e-05,2]
[343656500,1732799435588,-500.0,9.999e-05,2]
[343656501,1732799435597,-500.0,9.999e-05,2]
[343656502,1732799435606,-409.34744826,9.999e-05,2]
[343656503,1732799435615,-507.9,9.999e-05,2]
[343656504,1732799435625,-507.9,9.999e-05,2]
[343656505,1732799435635,-507.9,9.999e-05,2]
[343656506,1732799435643,-507.9,9.999e-05,2]
[343656507,1732799435652,-507.9,9.999e-05,2]
[343656508,1732799435662,-507.9,9.999e-05,2]
[343656509,1732799435671,-507.9,9.999e-05,2]
[343656510,1732799435680,-507.9,9.999e-05,2]
[343656511,1732799435694,-507.9,9.999e-05,2]
[343656512,1732799435703,-507.9,9.999e-05,2]
[343656513,1732799435712,-507.9,9.999e-05,2]
[343656514,1732799435722,-507.9,9.999e-05,2]
[343656515,1732799435731,-507.9,9.999e-05,2]
[343656516,1732799435740,-507.9,9.999e-05,2]
[343656517,1732799435750,-507.9,9.999e-05,2]
[343656518,1732799435759,-507.9,9.999e-05,2]
[343656519,1732799435768,-507.9,9.999e-05,2]
[343656520,1732799435776,-507.9,9.999e-05,2]
[343656521,1732799435786,-507.9,9.999e-05,2]
[343656522,1732799435795,-507.9,9.999e-05,2]
[343656523,1732799435803,-507.9,9.999e-05,2]
[343656524,1732799435812,-507.9,9.999e-05,2]
[343656525,1732799435821,-507.9,9.999e-05,2]
[343656526,1732799435831,-507.9,9.999e-05,2]
[343656527,1732799435840,-500.0,9.999e-05,2]
[343656528,1732799435849,-500.0,9.999e-05,2]
[343656529,1732799435858,-500.0,9.999e-05,2]
[343656530,1732799435867,-500.0,9.999e-05,2]
[343656531,1732799435876,-500.0,9.999e-05,2]
[343656532,1732799435885,-500.0,9.999e-05,2]
[343656533,1732799435894,-500.0,9.999e-05,2]
[343656534,1732799435903,-500.0,9.999e-05,2]
[343656535,1732799435912,-500.0,9.999e-05,2]
[343656536,1732799435921,-500.0,9.999e-05,2]
[343656537,1732799435930,-500.0,9.999e-05,2]
[343656538,1732799435940,-500.0,9.999e-05,2]
[343656539,1732799435949,-500.0,9.999e-05,2]
[343656540,1732799435958,-500.0,9.999e-05,2]
[343656541,1732799435968,-562.94270189,9.999e-05,2]
[343656542,1732799435977,-500.0,9.999e-05,2]
[343656543,1732799435986,-468.0577195,9.999e-05,2]
[343656544,1732799435995,-608.5018665,9.999e-05,2]
[343656545,1732799436004,-500.0,9.999e-05,2]
[343656546,1732799436013,-500.0,9.999e-05,2]
[343656547,1732799436022,-254.17716702,9.999e-05,2]
[343656548,1732799436032,-500.0,9.999e-05,2]
[343656549,1732799436041,-305.60323731,9.999e-05,2]
[343656550,1732799436050,-500.0,9.999e-05,2]
[343656551,1732799436059,-500.0,9.999e-05,2]
[343656552,1732799436068,-500.0,9.999e-05,2]
[343656553,1732799436077,-500.0,9.999e-05,2]
[343656554,1732799436086,-299.94494526,9.999e-05,2]
[343656555,1732799436095,-500.0,9.999e-05,2]
[343656556,1732799436104,-500.0,9.999e-05,2]
[343656557,1732799436112,-500.0,9.999e-05,2]
[343656558,1732799436121,-500.0,9.999e-05,2]
[343656559,1732799436130,-500.0,9.999e-05,2]
[343656560,1732799436139,-532.72169599,9.999e-05,2]
[343656561,1732799436148,-500.0,9.999e-05,2]
[343656562,1732799436156,-500.0,9.999e-05,2]
[343656563,1732799436167,-500.0,9.999e-05,2]
[343656564,1732799436176,-500.0,9.999e-05,2]
[343656565,1732799436190,-500.0,9.999e-05,2]
[343656566,1732799436200,-500.0,9.999e-05,2]
[343656567,1732799436209,-500.0,9.999e-05,2]
[343656568,1732799436218,-500.0,9.999e-05,2]
[343656569,1732799436228,-500.0,9.999e-05,2]
[343656570,1732799436238,-237.07297256,9.999e-05,2]
[343656571,1732799436247,-500.0,9.999e-05,2]
[343656572,1732799436258,-542.16425781,9.999e-05,2]
[343656573,1732799436267,-500.0,9.999e-05,2]
[343656574,1732799436276,-500.0,9.999e-05,2]
[343656575,1732799436285,-500.0,9.999e-05,2]
[343656576,1732799436294,-360.31,9.999e-05,2]
[343656577,1732799436303,-500.0,9.999e-05,2]
[343656578,1732799436312,-500.0,9.999e-05,2]
[343656579,1732799436321,-453.57,9.999e-05,2]
[343656580,1732799436330,-500.0,9.999e-05,2]
[343656581,1732799436339,-500.0,9.999e-05,2]
[343656582,1732799436349,-500.0,9.999e-05,2]
[343656583,1732799436358,-500.0,9.999e-05,2]
[343656584,1732799436367,-500.0,9.999e-05,2]
[343656585,1732799436376,-500.0,9.999e-05,2]
[343656586,1732799436385,-500.0,9.999e-05,2]
[343656587,1732799436395,-500.0,9.999e-05,2]
[343656588,1732799436403,-500.0,9.999e-05,2]
[343656589,1732799436412,-500.0,9.999e-05,2]
[343656590,1732799436421,-500.0,9.999e-05,2]
[343656591,1732799436430,-500.0,9.999e-05,2]
[343656592,1732799436440,-500.0,9.999e-05,2]
[343656593,1732799436449,-390.56,9.999e-05,2]
[343656594,1732799436458,-500.0,9.999e-05,2]
[343656595,1732799436467,-500.0,9.999e-05,2]
[343656596,1732799436477,-512.19733066,9.999e-05,2]
[343656597,1732799436486,-500.0,9.999e-05,2]
[343656598,1732799436496,-500.0,9.999e-05,2]
[343656599,1732799436506,-161.75,9.999e-05,2]
[343656600,1732799436516,-4072.51549096,9.999e-05,2]
[343656601,1732799436791,-2871.66186,9.999e-05,2]
[343656602,1732799436802,-423.93561778,9.999e-05,2]
[343656603,1732799436814,-1131.88703126,9.999e-05,2]
[343656604,1732799436823,-557.68514008,9.999e-05,2]
[343656605,1732799436832,-500.0,9.999e-05,2]
[343656606,1732799436842,-500.0,9.999e-05,2]
[343656607,1732799436851,-581.90939679,9.999e-05,2]
[343656608,1732799436860,-500.0,9.999e-05,2]
[343656609,1732799436869,-500.0,9.999e-05,2]
[343656610,1732799436877,-292.8,9.999e-05,2]
[343656611,1732799436886,-500.0,9.999e-05,2]
[343656612,1732799436895,-500.0,9.999e-05,2]
[343656613,1732799436906,-500.0,9.999e-05,2]
[343656614,1732799436916,-500.0,9.999e-05,2]
[343656615,1732799436925,-500.0,9.999e-05,2]
[343656616,1732799436937,-500.0,9.999e-05,2]
[343656617,1732799436946,-500.0,9.999e-05,2]
[343656618,1732799436955,-515.60297506,9.999e-05,2]
[343656619,1732799436965,-500.0,9.999e-05,2]
[343656620,1732799436975,-514.02853795,9.999e-05,2]
[343656621,1732799436985,-500.0,9.999e-05,2]
[343656622,1732799436995,-516.56406965,9.999e-05,2]
[343656623,1732799437004,-500.0,9.999e-05,2]
[343656624,1732799437014,-624.46359091,9.999e-05,2]
[343656625,1732799437023,-500.0,9.999e-05,2]
[343656626,1732799437033,-500.0,9.999e-05,2]
[343656627,1732799437043,-500.0,9.999e-05,2]
[343656628,1732799437052,-500.0,9.999e-05,2]
[343656629,1732799437063,-517.65342595,9.999e-05,2]
[343656630,1732799437072,-528.0442371,9.999e-05,2]
[343656631,1732799437081,-500.0,9.999e-05,2]
[343656632,1732799437091,-504.58080668,9.999e-05,2]
[343656633,1732799437100,-347.58135566,9.999e-05,2]
[343656634,1732799437109,-500.0,9.999e-05,2]
[343656635,1732799437118,-636.83,9.999e-05,2]
[343656636,1732799437127,-500.0,9.999e-05,2]
[343656637,1732799437137,-500.0,9.999e-05,2]
[343656638,1732799437147,-500.0,9.999e-05,2]
[343656639,1732799437157,-500.0,9.999e-05,2]
[343656640,1732799437166,-566.43473651,9.999e-05,2]
[343656641,1732799437176,-500.0,9.999e-05,2]
[343656642,1732799437193,-500.0,9.999e-05,2]
[343656643,1732799437202,-510.02758171,9.999e-05,2]
[343656644,1732799437211,-500.0,9.999e-05,2]
[343656645,1732799437222,-500.0,9.999e-05,2]
[343656646,1732799437231,-500.0,9.999e-05,2]
[343656647,1732799437241,-500.0,9.999e-05,2]
[343656648,1732799437251,-8500.0,9.999e-05,2]
[343656650,1732799437261,-500.0,9.999e-05,2]
[343656651,1732799437271,-500.0,9.999e-05,2]
[343656652,1732799437281,-500.0,9.999e-05,2]
[343656653,1732799437291,-500.0,9.999e-05,2]
[343656654,1732799437301,-500.0,9.999e-05,2]
[343656655,1732799437311,-500.0,9.999e-05,2]
[343656656,1732799437320,-500.0,9.999e-05,2]
[343656657,1732799437330,-500.0,9.999e-05,2]
[343656658,1732799437339,-500.0,9.999e-05,2]
[343656659,1732799437349,-500.0,9.999e-05,2]
[343656660,1732799437357,-500.0,9.999e-05,2]
[343656661,1732799437366,-500.0,9.999e-05,2]
[343656662,1732799437375,-500.0,9.999e-05,2]
[343656663,1732799437385,-500.0,9.999e-05,2]
[343656664,1732799437394,-500.0,9.999e-05,2]
[343656665,1732799437403,-500.0,9.999e-05,2]
[343656666,1732799437413,-500.0,9.999e-05,2]
[343656667,1732799437423,-500.0,9.999e-05,2]
[343656668,1732799437434,-500.0,9.999e-05,2]
[343656669,1732799437444,-500.0,9.999e-05,2]
[343656670,1732799437453,-500.0,9.999e-05,2]
[343656671,1732799437463,-256.53781107,9.999e-05,2]
[343656672,1732799437473,-500.0,9.999e-05,2]
[343656673,1732799437482,-500.0,9.999e-05,2]
[343656674,1732799437492,-230.04,9.999e-05,2]
[343656675,1732799437502,-500.0,9.999e-05,2]
[343656676,1732799437511,-500.0,9.999e-05,2]
[343656677,1732799437520,-500.0,9.999e-05,2]
[343656678,1732799437530,-500.0,9.999e-05,2]
[343656679,1732799437539,-546.85,9.999e-05,2]
[343656680,1732799437548,-194.19,9.999e-05,2]
[343656681,1732799437558,-174.99009655,9.999e-05,2]
[343656682,1732799437567,-618.77501859,9.999e-05,2]
[343656683,1732799437576,-300.07418999,9.999e-05,2]
[343656684,1732799437586,-500.0,9.999e-05,2]
[343656685,1732799437595,-504.0,9.999e-05,2]
[343656686,1732799437605,-200.0,0.0001,2]
[343656687,1732799437615,-45419.05098519,0.0001,2]
[343656688,1732799437630,-1910.874,0.0001,2]
[343656702,1732799438244,-500.0,9.873e-05,2]
[343656703,1732799438254,-493.24285128,9.898e-05,2]
[343656704,1732799438278,-6.75714872,9.898e-05,2]
[343656705,1732799438287,-46020.84285128,0.0001,2]
[343656707,1732799442600,-2539.43245247,0.0001,2]
[343656711,1732799445615,-488.88,9.999e-05,2]
[343656712,1732799445675,-68.12,9.999e-05,2]
[343656713,1732799445684,-416.64364924,0.0001,2]
[343656714,1732799445794,-4786.1031,0.0001,2]
[343656993,1732800409132,-196.91049096,8.219e-05,2]
[343657022,1732800631841,-833.96950904,8.219e-05,2]
[343657023,1732800631851,-300.0,8.787e-05,2]
[343657024,1732800631861,-8431.9810074,8.788e-05,2]
[343657025,1732800631959,-366.6798741,8.788e-05,2]
[343657026,1732800631971,-567.499999,8.788e-05,2]
[343657027,1732800632022,-1291.1088336,8.788e-05,2]
[343657028,1732800632085,-13242.7302859,8.788e-05,2]
[343657030,1732800632095,-250.0,8.823e-05,2]
[343657032,1732800632105,-250.0,8.856e-05,2]
[343657034,1732800632115,-1000.0,8.928e-05,2]
[343657036,1732800632124,-266.86,8.937e-05,2]
[343657038,1732800632134,-160.18,8.965e-05,2]
[343657039,1732800632143,-166.24,9.224e-05,2]
[343657040,1732800632152,-158.05,9.238e-05,2]
[343657041,1732800632162,-173.72,9.478e-05,2]
[343657042,1732800632171,-765.32,9.541e-05,2]
[343657043,1732800632183,-400.0,9.589e-05,2]
[343657044,1732800632195,-158.64,9.589e-05,2]
[343657045,1732800632204,-14972.0,9.605e-05,2]
[343657046,1732800632215,-420.0,9.666e-05,2]
[343657047,1732800632224,-915.73,9.678e-05,2]
[343657049,1732800632233,-150.0,9.697e-05,2]
[343657051,1732800632242,-1058.4424,9.698e-05,2]
[343657053,1732800632251,-1000.0,9.7e-05,2]
[343657054,1732800632263,-84693.4932,9.798e-05,2]
[343657055,1732800632273,-498.26,9.798e-05,2]
[343657056,1732800632283,-25312.5021,9.798e-05,2]
[343657057,1732800632292,-499.34,9.799e-05,2]
[343657058,1732800632301,-154.730726,9.894e-05,2]
[343657059,1732800632311,-187.49167,9.894e-05,2]
[343657060,1732800632320,-500.0,9.898e-05,2]
[343657061,1732800632329,-500.0,9.898e-05,2]
[343657062,1732800632338,-500.0,9.898e-05,2]
[343657063,1732800632347,-500.0,9.898e-05,2]
[343657064,1732800632356,-1000.0,9.9e-05,2]
[343657065,1732800632366,-1802.0,9.9e-05,2]
[343657066,1732800632375,-1026.53,9.9e-05,2]
[343657067,1732800632385,-500.0,9.9e-05,2]
[343657068,1732800632394,-500.0,9.9e-05,2]
[343657069,1732800632403,-500.0,9.973e-05,2]
[343657070,1732800632412,-500.0,9.973e-05,2]
[343657071,1732800632421,-500.0,9.973e-05,2]
[343657072,1732800632431,-161.493,9.989e-05,2]
[343657073,1732800632441,-633.0,9.989e-05,2]
[343657074,1732800632451,-5951.0,9.989e-05,2]
[343657075,1732800632460,-13683.0,9.989e-05,2]
[343657076,1732800632469,-1176.457,9.989e-05,2]
[343657077,1732800632478,-371.72383429,9.989e-05,2]
[343657078,1732800632487,-500.0,9.989e-05,2]
[343657079,1732800632497,-500.0,9.989e-05,2]
[343657080,1732800632506,-500.0,9.989e-05,2]
[343657081,1732800632517,-500.0,9.989e-05,2]
[343657082,1732800632526,-500.0,9.989e-05,2]
[343657083,1732800632536,-1319.1,9.989e-05,2]
[343657084,1732800632548,-500.0,9.989e-05,2]
[343657085,1732800632557,-500.0,9.989e-05,2]
[343657086,1732800632566,-500.0,9.989e-05,2]
[343657087,1732800632577,-1635.931,9.99e-05,2]
[343657088,1732800632589,-230.036,9.99e-05,2]
[343657089,1732800632601,-35582.71572942,9.99e-05,2]
[343657090,1732800632615,-579.10495909,9.99e-05,2]
[343657091,1732800632627,-579.10495909,9.99e-05,2]
[343657092,1732800632638,-579.10495909,9.99e-05,2]
[343657093,1732800632649,-579.10495909,9.99e-05,2]
[343657094,1732800632659,-154.730726,9.996e-05,2]
[343657095,1732800632670,-500.0,9.997e-05,2]
[343657096,1732800632681,-154.730726,9.998e-05,2]
[343657097,1732800632692,-154.730726,9.998e-05,2]
[343657098,1732800632703,-507.62109727,9.998e-05,2]
[343657099,1732800632714,-504.37763534,9.998e-05,2]
[343657100,1732800632725,-503.07817164,9.998e-05,2]
[343657101,1732800632736,-495.56834607,9.998e-05,2]
[343657102,1732800632747,-500.0,9.998e-05,2]
[343657103,1732800632761,-500.0,9.998e-05,2]
[343657104,1732800632772,-319.85004237,9.998e-05,2]
[343657105,1732800632784,-500.0,9.998e-05,2]
[343657106,1732800632794,-500.0,9.998e-05,2]
[343657107,1732800632805,-500.0,9.998e-05,2]
[343657108,1732800632816,-386.0,9.998e-05,2]
[343657109,1732800632827,-500.0,9.998e-05,2]
[343657110,1732800632836,-500.0,9.998e-05,2]
[343657111,1732800632846,-500.0,9.998e-05,2]
[343657112,1732800632858,-500.0,9.998e-05,2]
[343657113,1732800632869,-500.0,9.998e-05,2]
[343657114,1732800632880,-500.0,9.998e-05,2]
[343657115,1732800632892,-500.0,9.998e-05,2]
[343657116,1732800632903,-500.0,9.998e-05,2]
[343657117,1732800632914,-500.0,9.998e-05,2]
[343657118,1732800632925,-500.0,9.998e-05,2]
[343657119,1732800632937,-500.0,9.998e-05,2]
[343657120,1732800632949,-500.0,9.998e-05,2]
[343657121,1732800632961,-500.0,9.998e-05,2]
[343657122,1732800632972,-500.0,9.998e-05,2]
[343657123,1732800632983,-500.0,9.998e-05,2]
[343657124,1732800632994,-500.0,9.998e-05,2]
[343657125,1732800633005,-500.0,9.998e-05,2]
[343657126,1732800633020,-500.0,9.998e-05,2]
[343657127,1732800633031,-491.57,9.998e-05,2]
[343657128,1732800633043,-500.0,9.998e-05,2]
[343657129,1732800633055,-500.0,9.998e-05,2]
[343657130,1732800633066,-500.0,9.998e-05,2]
[343657131,1732800633077,-500.0,9.998e-05,2]
[343657132,1732800633089,-500.0,9.998e-05,2]
[343657133,1732800633100,-500.0,9.998e-05,2]
[343657134,1732800633111,-500.0,9.998e-05,2]
[343657135,1732800633122,-500.0,9.998e-05,2]
[343657136,1732800633133,-500.0,9.998e-05,2]
[343657137,1732800633145,-636.34,9.998e-05,2]
[343657138,1732800633157,-192.8,9.998e-05,2]
[343657139,1732800633168,-509.3399703,9.998e-05,2]
[343657140,1732800633179,-500.0,9.998e-05,2]
[343657141,1732800633190,-520.83,9.998e-05,2]
[343657142,1732800633199,-275.68,9.998e-05,2]
[343657143,1732800633210,-500.0,9.998e-05,2]
[343657144,1732800633220,-500.0,9.998e-05,2]
[343657145,1732800633230,-150.01,9.999e-05,2]
[343657146,1732800633241,-244.25139136,9.999e-05,2]
[343657147,1732800633253,-154.730726,9.999e-05,2]
[343657148,1732800633268,-154.730726,9.999e-05,2]
[343657149,1732800633280,-154.730726,9.999e-05,2]
[343657150,1732800633291,-154.730726,9.999e-05,2]
[343657151,1732800633301,-500.0,9.999e-05,2]
[343657152,1732800633311,-524.08300653,9.999e-05,2]
[343657153,1732800633321,-500.0,9.999e-05,2]
[343657154,1732800633332,-434.02690128,9.999e-05,2]
[343657155,1732800633342,-500.0,9.999e-05,2]
[343657156,1732800633354,-500.0,9.999e-05,2]
[343657157,1732800633365,-500.0,9.999e-05,2]
[343657158,1732800633377,-500.0,9.999e-05,2]
[343657159,1732800633389,-500.0,9.999e-05,2]
[343657160,1732800633400,-554.53,9.999e-05,2]
[343657161,1732800633411,-500.0,9.999e-05,2]
[343657162,1732800633421,-500.0,9.999e-05,2]
[343657163,1732800633432,-500.0,9.999e-05,2]
[343657164,1732800633442,-500.0,9.999e-05,2]
[343657165,1732800633452,-500.0,9.999e-05,2]
[343657166,1732800633463,-500.0,9.999e-05,2]
[343657167,1732800633473,-500.0,9.999e-05,2]
[343657168,1732800633484,-500.0,9.999e-05,2]
[343657169,1732800633495,-500.0,9.999e-05,2]
[343657170,1732800633506,-500.0,9.999e-05,2]
[343657171,1732800633524,-500.0,9.999e-05,2]
[343657172,1732800633539,-500.0,9.999e-05,2]
[343657173,1732800633551,-500.0,9.999e-05,2]
[343657174,1732800633562,-500.0,9.999e-05,2]
[343657175,1732800633572,-374.34,9.999e-05,2]
[343657176,1732800633584,-8500.0,9.999e-05,2]
[343657177,1732800633594,-589.70663841,9.999e-05,2]
[343657178,1732800633605,-500.0,9.999e-05,2]
[343657179,1732800633615,-324.22899273,9.999e-05,2]
[343657180,1732800633627,-500.0,9.999e-05,2]
[343657181,1732800633638,-500.0,9.999e-05,2]
[343657182,1732800633648,-500.0,9.999e-05,2]
[343657183,1732800633659,-500.0,9.999e-05,2]
[343657184,1732800633670,-500.0,9.999e-05,2]
[343657185,1732800633680,-500.0,9.999e-05,2]
[343657186,1732800633691,-500.0,9.999e-05,2]
[343657187,1732800633701,-503.23787443,9.999e-05,2]
[343657188,1732800633713,-552.0832761,9.999e-05,2]
[343657189,1732800633724,-500.0,9.999e-05,2]
[343657190,1732800633735,-504.34385713,9.999e-05,2]
[343657191,1732800633745,-500.76934441,9.999e-05,2]
[343657192,1732800633756,-500.0,9.999e-05,2]
[343657193,1732800633769,-500.0,9.999e-05,2]
[343657194,1732800633781,-500.0,9.999e-05,2]
[343657195,1732800633792,-500.0,9.999e-05,2]
[343657196,1732800633803,-500.0,9.999e-05,2]
[343657197,1732800633814,-500.0,9.999e-05,2]
[343657198,1732800633826,-500.0,9.999e-05,2]
[343657199,1732800633837,-500.0,9.999e-05,2]
[343657200,1732800633848,-500.0,9.999e-05,2]
[343657201,1732800633859,-500.0,9.999e-05,2]
[343657202,1732800633870,-500.0,9.999e-05,2]
[343657203,1732800633880,-500.0,9.999e-05,2]
[343657204,1732800633892,-500.0,9.999e-05,2]
[343657205,1732800633903,-500.0,9.999e-05,2]
[343657206,1732800633915,-500.0,9.999e-05,2]